bitfinex-derivatives/quotes_SOLF0:USTF0_20260121
["timestamp","ask_amount","ask_price","bid_price","bid_amount"]
[1769016070914,5.84055896,126.22,126.12,3.22438904]
[1769016071217,117.58344822,126.25,126.12,3.22438904]
[1769016071423,116.84318347,126.24,126.12,3.22438904]
[1769016071616,7.1372,126.21,126.12,3.22438904]
[1769016072024,7.1363,126.23,126.14,10.36498904]
[1769016072322,117.55364822,126.28,126.15,3.22438904]
[1769016072521,11.86540619,126.27,126.15,3.22438904]
[1769016072721,5.85696026,126.26,126.15,3.22438904]
[1769016072924,5.85696026,126.25,126.15,3.22438904]
[1769016073222,110.9437,126.3,126.18,3.22438904]
[1769016073428,5.85574318,126.29,126.18,3.22438904]
[1769016073611,5.85574318,126.28,126.18,3.22438904]
[1769016073810,5.85574318,126.28,126.18,10.36298904]
[1769016073811,7.1343,126.26,126.18,10.36298904]
[1769016074015,6.59054822,126.29,126.18,10.36298904]
[1769016074217,7.1344,126.26,126.18,3.22438904]
[1769016074624,117.54514822,126.29,126.14,111.0801]
[1769016074625,5.85457577,126.25,126.14,114.30448904]
[1769016074822,5.85457577,126.25,126.14,3.22438904]
[1769016074823,7.1362,126.23,126.14,3.22438904]
[1769016075020,110.9949,126.24,126.14,3.22438904]
[1769016075222,5.85431426,126.23,126.14,3.22438904]
[1769016075422,110.9862,126.25,126.14,10.36528904]
[1769016075624,11.87487092,126.24,126.14,10.36528904]
[1769016075813,5.86066714,126.23,126.15,7.1401]
[1769016076014,7.1355,126.24,126.15,7.1401]
[1769016076218,5.86114352,126.23,126.15,7.1401]
[1769016076430,7.1345,126.26,126.16,3.43362835]
[1769016076724,110.9698,126.27,126.16,3.43362835]
[1769016076913,7.1354,126.24,126.16,3.43362835]
[1769016077116,5.86503634,126.23,126.14,3.43362835]
[1769016077334,7.1354,126.24,126.14,3.43362835]
[1769016077825,13.00086255,126.23,126.14,3.43362835]
[1769016078127,6.59054822,126.26,126.14,3.43362835]
[1769016078319,7.1354,126.24,126.16,7.1397]
[1769016078923,110.9863,126.25,126.14,10.57422835]
[1769016079117,117.59614822,126.23,126.11,3.43362835]
[1769016079326,122.8902352,126.22,126.11,3.43362835]
[1769016079520,7.1382,126.19,126.11,10.57592835]
[1769016079721,306.35054822,126.23,126.11,3.43362835]
[1769016079925,11.8765624,126.22,126.11,3.43362835]
[1769016080222,12.99839081,126.21,126.11,3.43362835]
[1769016080523,6.59054822,126.25,126.12,3.43362835]
[1769016080818,6.59054822,126.25,126.13,3.43362835]
[1769016080819,7.1363,126.23,126.13,3.43362835]
[1769016081026,6.59054822,126.25,126.13,3.43362835]
[1769016081227,5.85945461,126.24,126.13,3.43362835]
[1769016081428,5.85945461,126.23,126.13,3.43362835]
[1769016081623,6.59054822,126.25,126.13,3.43362835]
[1769016081624,5.85967818,126.22,126.13,3.43362835]
[1769016081825,5.85967818,126.21,126.13,3.43362835]
[1769016082020,7.1371,126.21,126.13,10.57502835]
[1769016082224,5.86212492,126.2,126.1,3.43362835]
[1769016082531,6.59054822,126.22,126.1,3.43362835]
[1769016082725,111.0295,126.2,126.1,3.43362835]
[1769016082919,11.87999999,126.19,126.1,3.43362835]
[1769016083119,5.86289766,126.18,126.1,3.43362835]
[1769016083325,5.86348133,126.17,126.07,3.43362835]
[1769016083521,6.59054822,126.19,126.07,3.43362835]
[1769016083722,5.86299776,126.18,126.07,3.43362835]
[1769016083929,5.86299776,126.17,126.07,3.43362835]
[1769016084228,6.59054822,126.19,126.07,3.43362835]
[1769016084428,7.1399,126.16,126.07,3.43362835]
[1769016084621,5.86154181,126.15,126.07,3.43362835]
[1769016084826,124.80618511,126.19,126.07,3.43362835]
[1769016084827,7.14,126.16,126.08,7.1442]
[1769016085323,117.63174822,126.19,126.07,3.43362835]
[1769016085324,111.0565,126.17,126.07,3.43362835]
[1769016085529,18.45758115,126.16,126.01,3.43362835]
[1769016085729,117.68144822,126.13,126.01,3.43362835]
[1769016085928,122.96619942,126.12,126.01,3.43362835]
[1769016086122,11.86269942,126.11,126.01,3.43362835]
[1769016086322,123.56662171,126.1,125.97,3.43362835]
[1769016086518,111.1365,126.08,125.97,3.43362835]
[1769016086826,129.57881251,126.07,125.93,114.69262835]
[1769016087132,122.99554379,126.06,125.94,3.43362835]
[1769016087331,7.1463,126.05,125.95,10.58502835]
[1769016087626,7.1463,126.05,125.95,3.43362835]
[1769016087927,12.97773117,126.04,125.95,3.43362835]
[1769016088227,12.97773117,126.04,125.9,111.286]
[1769016088228,117.76174822,126.04,125.91,3.43362835]
[1769016088428,6.59054822,126.04,125.93,3.43362835]
[1769016088730,7.1462,126.05,125.95,3.43362835]
[1769016088928,6.59054822,126.07,125.96,3.43362835]
[1769016089227,13.73574822,126.07,125.96,10.58442835]
[1769016089430,6.59054822,126.07,125.96,10.58442835]
[1769016090128,6.59054822,126.07,125.97,3.43362835]
[1769016090330,7.1446,126.08,125.98,3.43362835]
[1769016091325,111.1018,126.12,126.0,3.43362835]
[1769016091523,111.1263,126.09,125.97,3.43362835]
[1769016091729,118.2703,126.09,125.98,3.43362835]
[1769016091926,7.144,126.09,125.98,3.43362835]
[1769016092821,7.1447,126.08,125.98,3.43362835]
[1769016093023,111.1372,126.08,125.98,3.43362835]
[1769016093320,7.1454,126.07,125.98,3.43362835]
[1769016093631,117.71244822,126.1,125.98,3.43362835]
[1769016094130,111.1376,126.08,125.98,3.43362835]
[1769016094331,111.1297,126.09,125.98,3.43362835]
[1769016095426,111.1439,126.07,125.98,3.43362835]
[1769016096025,7.1463,126.05,125.95,10.58512835]
[1769016096226,7.1463,126.05,125.96,3.43362835]
[1769016096425,111.1382,126.08,125.96,3.43362835]
[1769016096730,111.1087,126.11,125.99,3.43362835]
[1769016097427,111.1217,126.1,125.99,3.43362835]
[1769016097633,111.1087,126.11,125.99,3.43362835]
[1769016097826,111.1087,126.11,125.99,10.58282835]
[1769016097827,7.1439,126.09,125.99,10.58282835]
[1769016098032,111.13,126.09,125.96,3.43362835]
[1769016098334,111.1356,126.08,125.96,3.43362835]
[1769016098732,111.1529,126.06,125.96,3.43362835]
[1769016098930,117.73524822,126.07,125.96,3.43362835]
[1769016099929,117.73524822,126.07,125.96,10.58462835]
[1769016099930,7.1463,126.05,125.96,10.58462835]
[1769016100135,6.59054822,126.07,125.96,10.58462835]
[1769016101038,7.1456,126.06,125.96,10.58462835]
[1769016101533,7.1462,126.05,125.96,10.58462835]
[1769016101730,111.1625,126.05,125.92,3.43362835]
[1769016102033,7.1485,126.01,125.92,3.43362835]
[1769016102234,7.1485,126.01,125.92,10.58682835]
[1769016102435,117.76564822,126.04,125.92,3.43362835]
[1769016102636,7.1465,126.05,125.94,3.43362835]
[1769016102843,117.71554822,126.1,125.97,3.43362835]
[1769016103040,111.1283,126.09,125.97,3.43362835]
[1769016103338,111.1366,126.08,125.97,3.43362835]
[1769016103540,111.1366,126.08,125.97,10.58382835]
[1769016103735,7.1462,126.05,125.97,3.43362835]
[1769016103934,111.1483,126.07,125.97,3.43362835]
[1769016104139,117.73884822,126.07,125.96,3.43362835]
[1769016104732,7.1468,126.04,125.96,10.58452835]
[1769016104938,117.73884822,126.07,125.96,10.58452835]
[1769016105436,117.73884822,126.07,125.96,3.43362835]
[1769016105636,111.1366,126.08,125.97,10.48002523]
[1769016105834,6.59054822,126.1,125.98,3.32952523]
[1769016106225,7.1444,126.08,125.98,7.1495]
[1769016106433,7.1444,126.08,125.99,3.32952523]
[1769016106633,111.1109,126.11,125.99,3.32952523]
[1769016106830,7.1439,126.09,126.01,10.47752523]
[1769016108142,7.1444,126.08,126.01,3.32952523]
[1769016108441,111.1078,126.12,126.01,3.32952523]
[1769016108643,7.1433,126.1,126.01,10.47782523]
[1769016109142,7.1438,126.09,126.01,10.47782523]
[1769016109545,111.1175,126.1,125.99,7.1494]
[1769016109744,111.1175,126.1,125.98,3.32952523]
[1769016109745,7.1465,126.05,125.98,3.32952523]
[1769016109936,111.1441,126.07,125.95,3.32952523]
[1769016110133,111.1441,126.07,125.96,7.1509]
[1769016111049,7.1467,126.04,125.96,10.48042523]
[1769016111541,111.1711,126.04,125.93,3.32952523]
[1769016111741,111.1626,126.05,125.93,3.32952523]
[1769016111943,111.171,126.04,125.93,3.32952523]
[1769016112344,7.1479,126.02,125.94,10.48162523]
[1769016113450,111.1626,126.05,125.95,3.32952523]
[1769016113850,6.6083315,126.06,125.95,3.32952523]
[1769016114048,7.1467,126.04,125.95,3.32952523]
[1769016114948,7.1467,126.04,125.96,7.1509]
[1769016115248,111.1402,126.08,125.96,3.32952523]
[1769016115850,111.1402,126.08,125.98,10.47942523]
[1769016116651,111.1252,126.1,125.99,3.32952523]
[1769016116955,111.1252,126.1,125.99,10.47892523]
[1769016117551,7.145,126.07,125.99,10.47892523]
[1769016117758,111.1353,126.08,125.99,3.32952523]
[1769016117958,111.1263,126.09,125.99,3.32952523]
[1769016118453,111.1375,126.08,125.97,7.1501]
[1769016118656,111.1542,126.06,125.95,3.32952523]
[1769016118849,111.1646,126.05,125.95,3.32952523]
[1769016119255,7.1467,126.04,125.95,10.48122523]
[1769016119857,117.7625315,126.06,125.96,10.62805928]
[1769016119858,13.7542315,126.06,125.96,10.62805928]
[1769016120248,7.1459,126.06,125.96,10.62805928]
[1769016120858,7.1459,126.06,125.97,10.62735928]
[1769016121058,6.6083315,126.09,125.97,3.47695928]
[1769016121059,7.1448,126.08,125.97,3.47695928]
[1769016121258,306.7883315,126.09,125.97,3.47695928]
[1769016121458,5.83518465,126.08,125.97,10.62695928]
[1769016121760,7.145,126.07,125.97,3.47695928]
[1769016121960,306.7883315,126.09,125.97,3.47695928]
[1769016121961,417.9183315,126.09,125.97,3.47695928]
[1769016122156,7.1462,126.05,125.96,7.1507]
[1769016122355,118.28773689,126.11,125.96,7.1507]
[1769016122356,13.78276839,126.12,125.99,3.47695928]
[1769016122560,111.1198,126.1,125.99,3.47695928]
[1769016122761,12.44633047,126.09,125.97,3.47695928]
[1769016122965,5.83799897,126.08,125.97,3.47695928]
[1769016123163,5.83799897,126.07,125.97,3.47695928]
[1769016123358,5.83799897,126.06,125.95,7.1514]
[1769016123667,111.1625,126.05,125.91,3.47695928]
[1769016123865,5.83799897,126.04,125.91,3.47695928]
[1769016124061,5.83799897,126.04,125.93,10.62935928]
[1769016124465,5.83799897,126.04,125.93,3.47695928]
[1769016124861,7.1478,126.02,125.93,10.62975928]
[1769016125056,111.171,126.04,125.93,3.47695928]
[1769016125262,111.171,126.04,125.91,3.47695928]
[1769016125263,111.1881,126.02,125.91,3.47695928]
[1769016125470,129.61158727,126.03,125.91,3.47695928]
[1769016125471,5.85012276,126.01,125.91,3.47695928]
[1769016125766,7.1482,126.02,125.92,10.63025928]
[1769016126070,6.6083315,126.03,125.93,3.47695928]
[1769016126365,5.85422594,126.02,125.93,3.47695928]
[1769016126559,5.85422594,126.02,125.91,111.2818]
[1769016126560,111.1644,126.05,125.95,3.47695928]
[1769016126763,5.86252485,126.04,125.95,3.47695928]
[1769016126964,5.86252485,126.03,125.95,3.47695928]
[1769016127268,5.97803214,126.02,125.92,7.1529]
[1769016127468,5.86252485,126.01,125.91,3.47695928]
[1769016127770,7.1495,125.99,125.91,10.63085928]
[1769016128073,111.1908,126.02,125.91,3.47695928]
[1769016128368,7.1501,125.98,125.91,10.63085928]
[1769016128757,111.2087,126.0,125.91,3.47695928]
[1769016128961,7.1507,125.97,125.91,3.47695928]
[1769016129468,7.1514,125.96,125.88,10.63245928]
[1769016129665,7.1514,125.96,125.89,3.47695928]
[1769016129973,111.2198,125.99,125.89,3.47695928]
[1769016130170,7.1512,125.96,125.9,3.47695928]
[1769016130871,111.2087,126.0,125.9,3.47695928]
[1769016130872,7.1519,125.95,125.9,3.47695928]
[1769016131277,7.1523,125.94,125.87,3.47695928]
[1769016131474,111.2497,125.95,125.87,3.47695928]
[1769016131775,111.268,125.93,125.83,3.47695928]
[1769016131972,5.90738862,125.92,125.83,3.47695928]
[1769016132171,111.263,125.94,125.84,3.47695928]
[1769016132373,5.90226641,125.93,125.84,3.47695928]
[1769016132674,111.2497,125.95,125.84,3.47695928]
[1769016132876,111.2497,125.95,125.82,10.63565928]
[1769016132877,111.2681,125.93,125.82,10.63565928]
[1769016133079,11.98430234,125.92,125.82,10.63565928]
[1769016133268,7.1556,125.89,125.82,3.47695928]
[1769016133876,7.156,125.88,125.79,3.47695928]
[1769016134374,6.6083315,125.91,125.79,3.47695928]
[1769016134676,5.88472295,125.9,125.79,3.47695928]
[1769016134870,111.2828,125.92,125.79,3.47695928]
[1769016135069,7.1552,125.89,125.8,3.47695928]
[1769016135271,111.2683,125.93,125.8,3.47695928]
[1769016135471,11.93674654,125.92,125.8,3.47695928]
[1769016135671,5.87735352,125.91,125.8,3.47695928]
[1769016135876,13.03215352,125.9,125.8,3.47695928]
[1769016136074,7.1548,125.9,125.8,3.47695928]
[1769016136267,6.6083315,125.91,125.8,3.47695928]
[1769016136473,5.87217551,125.9,125.8,3.47695928]
[1769016136678,6.6083315,125.91,125.77,124.23362317]
[1769016136978,5.8732382,125.9,125.78,3.45187737]
[1769016137182,7.1547,125.9,125.8,3.45187737]
[1769016137371,6.6083315,125.91,125.8,3.45187737]
[1769016137680,118.41610654,125.94,125.8,3.45187737]
[1769016137681,6.6083315,125.94,125.81,3.45187737]
[1769016137881,5.8643842,125.93,125.83,3.45187737]
[1769016138178,111.2416,125.96,125.83,3.45187737]
[1769016138479,7.153,125.93,125.83,10.61027737]
[1769016138675,5.86465701,125.92,125.83,3.45187737]
[1769016138865,13.7610315,125.94,125.83,3.45187737]
[1769016139065,5.86429538,125.93,125.83,114.80497737]
[1769016139266,6.6083315,125.94,125.83,3.45187737]
[1769016139666,6.6083315,125.97,125.84,3.45187737]
[1769016139876,5.86397402,125.96,125.86,3.45187737]
[1769016140077,6.6083315,125.97,125.86,3.45187737]
[1769016140281,6.6083315,126.0,125.88,3.45187737]
[1769016140580,11.91203835,125.99,125.88,3.45187737]
[1769016140776,5.86546868,125.98,125.88,3.45187737]
[1769016140981,6.6083315,126.0,125.88,3.45187737]
[1769016141177,11.91488901,125.99,125.88,3.45187737]
[1769016141377,6.6083315,126.0,125.88,3.45187737]
[1769016141584,5.8694417,125.99,125.88,3.45187737]
[1769016141884,7.1508,125.97,125.86,3.45187737]
[1769016142075,111.2242,125.98,125.86,3.45187737]
[1769016142269,12.48014418,125.97,125.86,3.45187737]
[1769016142468,5.87181268,125.96,125.86,3.45187737]
[1769016142673,6.6083315,125.97,125.86,3.45187737]
[1769016142870,418.2368315,126.0,125.86,3.45187737]
[1769016143080,5.87030217,125.99,125.86,3.45187737]
[1769016143280,5.87030217,125.99,125.87,3.45187737]
[1769016143281,117.09680085,125.98,125.87,3.45187737]
[1769016143584,117.09680085,125.98,125.78,445.5836]
[1769016143585,111.2425,125.96,125.84,3.45187737]
[1769016143877,7.1524,125.94,125.84,3.45187737]
[1769016144281,7.1516,125.96,125.84,3.45187737]
[1769016144678,6.6083315,125.97,125.84,3.45187737]
[1769016144978,6.6083315,126.03,125.9,3.45187737]
[1769016145183,5.85810557,126.02,125.9,3.45187737]
[1769016145378,111.1983,126.01,125.9,3.45187737]
[1769016145779,111.1882,126.02,125.9,3.45187737]
[1769016146295,5.85658851,126.01,125.9,3.45187737]
[1769016146583,111.1629,126.05,125.91,3.45187737]
[1769016146781,5.85824009,126.04,125.91,3.45187737]
[1769016147086,7.1486,126.01,125.91,3.45187737]
[1769016147772,111.1941,126.02,125.91,3.45187737]
[1769016148172,7.1486,126.01,125.91,3.45187737]
[1769016148387,117.7881315,126.03,125.91,3.45187737]
[1769016148584,111.1993,126.01,125.91,3.45187737]
[1769016148787,7.1496,125.99,125.91,3.45187737]
[1769016148987,117.7881315,126.03,125.91,3.45187737]
[1769016149386,7.149,126.0,125.91,3.45187737]
[1769016149888,7.1482,126.02,125.91,3.45187737]
[1769016150083,6.6083315,126.03,125.92,3.45187737]
[1769016150486,111.2162,125.99,125.89,3.45187737]
[1769016150887,111.224,125.98,125.89,3.45187737]
[1769016151076,7.1512,125.96,125.89,3.45187737]
[1769016151679,7.1519,125.95,125.89,3.45187737]
[1769016151998,111.2162,125.99,125.89,3.45187737]
[1769016152284,6.6083315,126.0,125.89,3.45187737]
[1769016152490,111.1776,126.04,125.9,3.45187737]
[1769016152491,117.7923315,126.03,125.9,3.45187737]
[1769016152787,111.1776,126.04,125.93,3.45187737]
[1769016152788,7.1482,126.02,125.93,3.45187737]
[1769016154098,7.1469,126.04,125.95,3.45187737]
[1769016154993,7.1474,126.03,125.95,10.60347737]
[1769016155692,7.1465,126.05,125.97,3.45187737]
[1769016156086,7.1454,126.07,125.99,3.45187737]
[1769016156286,111.1167,126.11,125.99,3.45187737]
[1769016156589,5.86896093,126.1,125.99,3.45187737]
[1769016156786,7.143,126.11,126.02,3.45187737]
[1769016157194,111.1003,126.12,126.02,3.45187737]
[1769016157492,7.1434,126.1,126.02,3.45187737]
[1769016157680,111.099,126.13,126.02,3.45187737]
[1769016157884,7.1428,126.11,126.02,3.45187737]
[1769016158090,5.86733424,126.12,126.02,3.45187737]
[1769016158091,111.099,126.13,126.02,3.45187737]
[1769016158288,5.86571245,126.12,126.02,3.45187737]
[1769016158487,5.86571245,126.12,125.99,111.2116]
[1769016158488,7.1424,126.12,126.04,3.45187737]
[1769016158794,411.4299,126.16,126.04,3.45187737]
[1769016158980,5.86493516,126.15,126.04,3.45187737]
[1769016159184,411.4299,126.16,126.04,3.45187737]
[1769016159393,5.85981219,126.15,126.04,3.45187737]
[1769016159588,300.36,126.16,126.04,3.45187737]
[1769016159795,13.00012677,126.15,126.04,10.59827737]
[1769016160092,7.1404,126.15,126.04,10.59827737]
[1769016160485,12.99521663,126.14,126.04,3.45187737]
[1769016160686,111.0851,126.14,126.04,3.45187737]
[1769016160894,5.85434549,126.13,126.0,3.45187737]
[1769016161083,111.0767,126.15,126.02,3.45187737]
[1769016161285,5.85257784,126.14,126.02,3.45187737]
[1769016161485,418.0354315,126.16,126.02,3.45187737]
[1769016161785,5.85767297,126.15,126.02,3.45187737]
[1769016161985,7.1413,126.14,126.04,3.45187737]
[1769016162390,111.0829,126.14,126.04,3.45187737]
[1769016162587,111.0763,126.15,126.04,3.45187737]
[1769016162588,7.1421,126.13,126.04,3.45187737]
[1769016163096,111.0861,126.14,126.04,3.45187737]
[1769016163295,111.1019,126.12,126.01,10.59977737]
[1769016163696,7.1435,126.1,126.01,3.45187737]
[1769016164089,111.0942,126.13,126.01,3.45187737]
[1769016164492,7.1428,126.11,126.02,3.45187737]
[1769016164694,111.1027,126.12,126.02,3.45187737]
[1769016165994,7.1434,126.1,126.02,3.45187737]
[1769016166995,7.144,126.09,126.02,3.45187737]
[1769016167587,7.1445,126.08,126.02,3.45187737]
[1769016168597,222.2626,126.09,125.99,3.22043557]
[1769016168805,111.1133,126.11,125.99,3.22043557]
[1769016169298,7.1448,126.08,126.0,3.22043557]
[1769016169700,7.1448,126.08,125.97,111.2287]
[1769016169701,7.1464,126.05,125.97,3.22043557]
[1769016169906,111.1729,126.04,125.94,3.22043557]
[1769016170292,111.1795,126.03,125.94,3.22043557]
[1769016170787,7.1497,125.99,125.9,10.37483557]
[1769016170992,117.7878315,126.03,125.91,3.22043557]
[1769016171896,117.7878315,126.03,125.9,111.2904]
[1769016171897,6.6083315,126.03,125.92,3.22043557]
[1769016172601,111.1729,126.04,125.92,3.22043557]
[1769016172602,7.147,126.04,125.93,3.22043557]
[1769016173899,7.147,126.04,125.94,10.37253557]
[1769016174397,7.147,126.04,125.94,3.22043557]
[1769016175097,111.1886,126.02,125.9,3.22043557]
[1769016175298,6.60747792,126.03,125.92,3.22043557]
[1769016175999,6.60747792,126.06,125.94,7.1521]
[1769016176398,7.1468,126.04,125.94,7.1521]
[1769016177694,7.1468,126.04,125.95,3.22043557]
[1769016178103,7.1473,126.03,125.94,7.1518]
[1769016178301,7.1473,126.03,125.93,3.22043557]
[1769016178896,7.1484,126.01,125.93,3.22043557]
[1769016179095,111.1891,126.02,125.9,3.34477472]
[1769016179703,7.1502,125.98,125.9,3.34477472]
[1769016180002,111.2155,125.99,125.9,3.34477472]
[1769016180206,7.1514,125.96,125.87,10.50087472]
[1769016180505,111.2155,125.99,125.88,3.34477472]
[1769016180700,117.81567792,126.0,125.89,3.34477472]
[1769016180701,7.1502,125.98,125.89,3.34477472]
[1769016181214,7.1494,126.0,125.91,3.34477472]
[1769016181505,117.79057792,126.03,125.91,3.34477472]
[1769016182001,7.149,126.0,125.91,10.49867472]
[1769016182404,111.2072,126.0,125.88,3.34477472]
[1769016182596,117.81467792,126.0,125.88,3.34477472]
[1769016183606,111.2235,125.98,125.89,3.34477472]
[1769016183816,111.2149,125.99,125.89,3.34477472]
[1769016184112,6.60747792,126.0,125.89,3.34477472]
[1769016184294,132.60367036,126.04,125.9,3.34477472]
[1769016184295,117.79227792,126.03,125.9,3.34477472]
[1769016184496,111.1969,126.01,125.9,3.34477472]
[1769016184702,7.1501,125.98,125.9,10.49887472]
[1769016184911,7.1501,125.98,125.91,3.34477472]
[1769016185210,111.1915,126.02,125.91,3.34477472]
[1769016185417,13.73904828,126.06,125.92,3.34477472]
[1769016185603,5.87165687,126.04,125.92,3.34477472]
[1769016185797,5.87278493,126.03,125.92,3.34477472]
[1769016186100,117.06903777,126.02,125.92,3.34477472]
[1769016186301,117.07743777,126.01,125.92,3.34477472]
[1769016186500,111.2008,126.01,125.92,3.34477472]
[1769016186705,111.2008,126.01,125.89,3.34477472]
[1769016186706,111.216,125.99,125.89,3.34477472]
[1769016186906,111.2339,125.97,125.85,3.34477472]
[1769016187100,6.60747792,125.99,125.87,3.34477472]
[1769016187301,5.8774362,125.98,125.87,3.34477472]
[1769016187510,117.82487792,125.99,125.87,3.34477472]
[1769016187711,5.87615212,125.98,125.87,3.34477472]
[1769016188002,7.1505,125.98,125.88,3.34477472]
[1769016188393,7.1507,125.97,125.89,7.1549]
[1769016188597,7.1507,125.97,125.88,3.34477472]
[1769016188806,111.2321,125.97,125.85,3.34477472]
[1769016189009,111.2505,125.95,125.82,3.34477472]
[1769016189205,117.85337792,125.96,125.82,3.34477472]
[1769016189506,5.87673387,125.95,125.86,3.34477472]
[1769016189708,6.60747792,125.96,125.86,3.34477472]
[1769016189904,6.60747792,125.99,125.87,3.34477472]
[1769016190105,5.88144132,125.98,125.87,3.34477472]
[1769016190301,6.60747792,125.99,125.87,3.34477472]
[1769016190608,117.10703554,125.98,125.87,3.34477472]
[1769016190807,6.60747792,125.96,125.87,3.34477472]
[1769016191010,6.60747792,125.96,125.83,111.3535]
[1769016191011,7.1519,125.95,125.84,10.50227472]
[1769016191321,6.60747792,125.96,125.85,3.34477472]
[1769016191500,6.60747792,125.96,125.86,3.34477472]
[1769016191704,7.151,125.97,125.88,7.1555]
[1769016192518,13.75717792,125.99,125.89,7.155]
[1769016192707,5.87889971,125.98,125.89,7.155]
[1769016192908,6.60747792,125.99,125.87,3.34477472]
[1769016193108,5.88075011,125.98,125.87,10.50067472]
[1769016193302,5.88075011,125.97,125.87,3.34477472]
[1769016193516,7.1525,125.94,125.86,7.1564]
[1769016194111,7.1525,125.94,125.84,10.50237472]
[1769016194512,7.1525,125.94,125.84,3.34477472]
[1769016195315,6.60747792,125.96,125.86,7.1566]
[1769016195519,6.60747792,125.96,125.87,3.43493362]
[1769016195815,6.60747792,125.99,125.89,7.1549]
[1769016196215,13.75707792,125.99,125.88,3.43493362]
[1769016196515,6.60747792,125.99,125.88,3.43493362]
[1769016197320,7.1501,125.98,125.88,3.43493362]
[1769016197914,7.1513,125.96,125.88,3.43493362]
[1769016198515,7.1504,125.98,125.88,3.43493362]
[1769016199018,6.60747792,126.02,125.9,3.43493362]
[1769016199206,7.1484,126.01,125.92,3.43493362]
[1769016199407,111.2056,126.0,125.89,3.43493362]
[1769016199613,117.82247792,125.99,125.89,3.43493362]
[1769016199811,7.1502,125.98,125.89,3.43493362]
[1769016200012,111.2024,126.01,125.89,3.43493362]
[1769016200314,7.1495,125.99,125.91,3.43493362]
[1769016200515,6.60747792,126.02,125.91,3.43493362]
[1769016200715,111.1847,126.03,125.91,3.43493362]
[1769016201018,111.1847,126.03,125.92,3.43493362]
[1769016201411,7.1483,126.02,125.93,3.43493362]
[1769016201606,111.1847,126.03,125.93,3.43493362]
[1769016202020,7.1484,126.01,125.94,3.43493362]
[1769016202323,111.1705,126.04,125.94,3.43493362]
[1769016202811,7.1484,126.01,125.94,3.43493362]
[1769016203012,111.1892,126.02,125.94,3.43493362]
[1769016203509,7.1496,125.99,125.89,3.43493362]
[1769016203715,111.1892,126.02,125.92,3.43493362]
[1769016204111,7.149,126.0,125.92,10.58803362]
[1769016204412,222.4076,126.01,125.92,3.43493362]
[1769016204823,117.79017792,126.03,125.92,3.43493362]
[1769016204824,111.1827,126.03,125.92,3.43493362]
[1769016205114,111.1616,126.05,125.93,3.43493362]
[1769016206019,111.1356,126.08,125.97,3.43493362]
[1769016206212,111.1155,126.11,125.97,3.43493362]
[1769016206411,117.01714588,126.1,125.97,3.43493362]
[1769016206608,111.1202,126.1,125.97,3.43493362]
[1769016206808,5.89621733,126.09,125.99,3.43493362]
[1769016207017,111.1155,126.11,125.99,3.43493362]
[1769016207229,5.89629788,126.1,125.99,3.43493362]
[1769016207423,5.89629788,126.09,125.99,3.43493362]
[1769016207624,7.1445,126.08,125.99,3.43493362]
[1769016207920,111.1227,126.1,125.99,3.43493362]
[1769016208119,5.89545631,126.09,125.96,3.43493362]
[1769016208311,7.1456,126.06,125.96,3.43493362]
[1769016209014,7.1456,126.06,125.97,7.1504]
[1769016209320,6.60747792,126.09,125.97,3.43493362]
[1769016209519,5.9031824,126.08,125.98,3.43493362]
[1769016209709,6.60747792,126.12,126.01,7.1481]
[1769016209913,11.78215697,126.11,126.01,7.1481]
[1769016210218,5.90355961,126.1,126.01,7.1481]
[1769016210409,5.90355961,126.09,126.02,7.1473]
[1769016210612,6.60747792,126.12,126.02,10.58223362]
[1769016210922,5.90516463,126.11,126.02,10.58223362]
[1769016211128,5.90516463,126.1,126.03,7.1471]
[1769016211321,6.60747792,126.12,126.03,10.58203362]
[1769016211622,5.90689079,126.11,126.03,10.58203362]
[1769016211808,6.60747792,126.15,126.03,10.58203362]
[1769016212010,11.78433221,126.14,126.0,114.63813362]
[1769016212208,11.78346391,126.13,126.01,3.43493362]
[1769016212423,13.05007737,126.12,126.01,3.43493362]
[1769016212624,5.90787737,126.11,126.01,3.43493362]
[1769016212927,7.16930342,126.14,126.03,3.43493362]
[1769016213120,5.90672326,126.13,126.03,3.43493362]
[1769016213321,5.90672326,126.12,126.04,10.58103362]
[1769016213624,7.16930342,126.16,126.05,3.43493362]
[1769016213835,5.90550682,126.15,126.05,3.43493362]
[1769016214026,5.90550682,126.14,126.06,3.43493362]
[1769016214325,5.90101376,126.13,126.03,3.43493362]
[1769016214522,118.22910342,126.17,126.03,3.43493362]
[1769016214719,7.1405,126.15,126.06,3.43493362]
[1769016214915,7.16930342,126.17,126.06,3.43493362]
[1769016214916,5.9011382,126.14,126.06,3.43493362]
[1769016215118,13.77678134,126.18,126.05,111.1609]